[Event "Live Chess"]
[Site "Chess.com"]
[Date "2024.06.02"]
[Round "-"]
[White "CheckThis4"]
[Black "wadsy27"]
[Result "0-1"]
[WhiteElo "2680"]
[BlackElo "2584"]
[TimeControl "300"]
[EndTime "6:44:33 PDT"]
[Termination "wadsy27 won by resignation"]

1. d4 {[%clk 0:04:58.1]} 1... d5 {[%clk 0:04:58]} 2. c4 {[%clk 0:04:56.7]} 2...
c6 {[%clk 0:04:57.4]} 3. Nc3 {[%clk 0:04:55.1]} 3... Nf6 {[%clk 0:04:56.7]} 4.
Nf3 {[%clk 0:04:54]} 4... a6 {[%clk 0:04:55.1]} 5. e3 {[%clk 0:04:51]} 5... b5
{[%clk 0:04:53.4]} 6. b3 {[%clk 0:04:50.3]} 6... Bg4 {[%clk 0:04:50.5]} 7. Be2
{[%clk 0:04:47.3]} 7... e6 {[%clk 0:04:45.4]} 8. h3 {[%clk 0:04:46.2]} 8... Bh5
{[%clk 0:04:42.9]} 9. O-O {[%clk 0:04:44.4]} 9... Bd6 {[%clk 0:04:39.9]} 10. Bb2
{[%clk 0:04:41.4]} 10... O-O {[%clk 0:04:38.5]} 11. Ne5 {[%clk 0:04:30.3]} 11...
Bxe2 {[%clk 0:04:36.1]} 12. Qxe2 {[%clk 0:04:12.8]} 12... Qc7 {[%clk 0:04:07.4]}
13. cxd5 {[%clk 0:04:07.5]} 13... cxd5 {[%clk 0:04:03.4]} 14. Rac1 {[%clk
0:04:04.9]} 14... Qb7 {[%clk 0:03:49.4]} 15. f4 {[%clk 0:03:44.3]} 15... Nbd7
{[%clk 0:03:44.8]} 16. g4 {[%clk 0:03:18.2]} 16... Rac8 {[%clk 0:03:41.3]} 17.
g5 {[%clk 0:03:15]} 17... Ne4 {[%clk 0:03:40.4]} 18. Nxe4 {[%clk 0:03:13.4]}
18... dxe4 {[%clk 0:03:40.3]} 19. Qd2 {[%clk 0:03:07.2]} 19... Nb6 {[%clk
0:03:34]} 20. Qa5 {[%clk 0:02:51.6]} 20... Nd5 {[%clk 0:03:30.9]} 21. Kf2 {[%clk
0:02:48.8]} 21... Bxe5 {[%clk 0:03:16.6]} 22. dxe5 {[%clk 0:02:42.4]} 22... g6
{[%clk 0:03:10.8]} 23. Bd4 {[%clk 0:02:39.9]} 23... Rxc1 {[%clk 0:03:07.3]} 24.
Rxc1 {[%clk 0:02:38]} 24... Rc8 {[%clk 0:03:06.8]} 25. Rc5 {[%clk 0:02:20.5]}
25... Rxc5 {[%clk 0:02:59.3]} 26. Bxc5 {[%clk 0:02:20.4]} 26... Qc8 {[%clk
0:02:57]} 27. b4 {[%clk 0:02:16.9]} 27... h6 {[%clk 0:02:52.6]} 28. h4 {[%clk
0:02:05]} 28... hxg5 {[%clk 0:02:50.6]} 29. hxg5 {[%clk 0:02:04.6]} 29... Nc3
{[%clk 0:02:40.3]} 30. Qa3 {[%clk 0:01:58.2]} 30... Na4 {[%clk 0:02:36.4]} 31.
Qc1 {[%clk 0:01:55.4]} 31... a5 {[%clk 0:02:30.2]} 32. a3 {[%clk 0:01:53.9]}
32... axb4 {[%clk 0:02:28.9]} 33. axb4 {[%clk 0:01:53.8]} 33... Qd7 {[%clk
0:02:18.4]} 34. Qc2 {[%clk 0:01:40]} 34... Qc6 {[%clk 0:02:02.6]} 35. Kg3 {[%clk
0:01:35]} 35... Qd5 {[%clk 0:01:44.5]} 36. Be7 {[%clk 0:01:30.1]} 36... Qc4
{[%clk 0:01:43]} 37. Qf2 {[%clk 0:01:01.8]} 37... Nc3 {[%clk 0:01:36.1]} 38. Bf6
{[%clk 0:01:00.8]} 38... Qe2 {[%clk 0:01:30.5]} 39. Qg1 {[%clk 0:00:49.3]} 39...
Qf3+ {[%clk 0:01:27.7]} 40. Kh2 {[%clk 0:00:43.8]} 40... Nd1 {[%clk 0:01:23.4]}
41. Qe1 {[%clk 0:00:28.5]} 41... Nxe3 {[%clk 0:01:19.4]} 42. Qd2 {[%clk
0:00:19.9]} 42... Nf1+ {[%clk 0:01:16.7]} 0-1

[Event "Live Chess"]
[Site "Chess.com"]
[Date "2024.06.02"]
[Round "-"]
[White "r0ad_t0-gm"]
[Black "Ksenia_2013"]
[Result "1-0"]
[WhiteElo "2306"]
[BlackElo "965"]
[TimeControl "300"]
[EndTime "6:44:41 PDT"]
[Termination "r0ad_t0-gm won by checkmate"]

1. Nf3 {[%clk 0:04:58.8]} 1... Nf6 {[%clk 0:04:56.7]} 2. g3 {[%clk 0:04:58.3]}
2... g6 {[%clk 0:04:53.5]} 3. b3 {[%clk 0:04:57.3]} 3... Bg7 {[%clk 0:04:52.5]}
4. Bb2 {[%clk 0:04:57.2]} 4... Nc6 {[%clk 0:04:50.6]} 5. Bg2 {[%clk 0:04:55.3]}
5... O-O {[%clk 0:04:49.4]} 6. O-O {[%clk 0:04:54.2]} 6... d6 {[%clk 0:04:47.7]}
7. d4 {[%clk 0:04:52.3]} 7... Bf5 {[%clk 0:04:46.4]} 8. Nbd2 {[%clk 0:04:50.9]}
8... Nd5 {[%clk 0:04:40.2]} 9. e4 {[%clk 0:04:49.3]} 9... Bxe4 {[%clk
0:04:38.6]} 10. Nxe4 {[%clk 0:04:49.2]} 10... Ncb4 {[%clk 0:04:22.3]} 11. a3
{[%clk 0:04:46]} 11... Nc6 {[%clk 0:04:16.5]} 12. c4 {[%clk 0:04:45.5]} 12...
Nf6 {[%clk 0:04:11.6]} 13. Nxf6+ {[%clk 0:04:44.7]} 13... Bxf6 {[%clk
0:04:10.4]} 14. Qd2 {[%clk 0:04:44.6]} 14... Bg7 {[%clk 0:04:08.4]} 15. d5
{[%clk 0:04:43.7]} 15... Ne5 {[%clk 0:04:04.5]} 16. Nxe5 {[%clk 0:04:42.5]}
16... dxe5 {[%clk 0:04:02.6]} 17. Rfe1 {[%clk 0:04:41.6]} 17... e4 {[%clk
0:03:58.5]} 18. Bxg7 {[%clk 0:04:39.9]} 18... Kxg7 {[%clk 0:03:57.3]} 19. Rxe4
{[%clk 0:04:39.5]} 19... Kg8 {[%clk 0:03:54.7]} 20. Rae1 {[%clk 0:04:38.6]}
20... Qd6 {[%clk 0:03:51.3]} 21. Qh6 {[%clk 0:04:36.7]} 21... Qxa3 {[%clk
0:03:45.9]} 22. Rh4 {[%clk 0:04:35.3]} 22... f5 {[%clk 0:03:37.6]} 23. Qxh7#
{[%clk 0:04:35.2]} 1-0

[Event "Live Chess"]
[Site "Chess.com"]
[Date "2024.06.02"]
[Round "-"]
[White "booktrunk"]
[Black "NottheBishopSacrifice"]
[Result "0-1"]
[WhiteElo "1499"]
[BlackElo "2327"]
[TimeControl "300"]
[EndTime "6:44:46 PDT"]
[Termination "NottheBishopSacrifice won by checkmate"]

1. d4 {[%clk 0:04:56.8]} 1... d5 {[%clk 0:04:57.6]} 2. Nc3 {[%clk 0:04:47.6]}
2... Nf6 {[%clk 0:04:55.2]} 3. Bf4 {[%clk 0:04:38.8]} 3... c5 {[%clk 0:04:54.2]}
4. dxc5 {[%clk 0:04:37.3]} 4... e6 {[%clk 0:04:49.9]} 5. e3 {[%clk 0:04:36.3]}
5... Bxc5 {[%clk 0:04:48.7]} 6. Nb5 {[%clk 0:04:35.3]} 6... Na6 {[%clk
0:04:45.9]} 7. a3 {[%clk 0:04:32]} 7... O-O {[%clk 0:04:44.6]} 8. Nf3 {[%clk
0:04:29.4]} 8... Bd7 {[%clk 0:04:41.3]} 9. h3 {[%clk 0:04:26.5]} 9... Bxb5
{[%clk 0:04:40.1]} 10. Bxb5 {[%clk 0:04:24.3]} 10... Qb6 {[%clk 0:04:37.7]} 11.
Bxa6 {[%clk 0:04:20.2]} 11... Qxa6 {[%clk 0:04:37.6]} 12. Rb1 {[%clk 0:04:18.2]}
12... Ne4 {[%clk 0:04:34.9]} 13. Qd3 {[%clk 0:04:11.2]} 13... Qb6 {[%clk
0:04:28.2]} 14. O-O {[%clk 0:04:07.3]} 14... Bd6 {[%clk 0:04:23.9]} 15. Bxd6
{[%clk 0:04:03.1]} 15... Nxd6 {[%clk 0:04:23.8]} 16. Rfd1 {[%clk 0:03:58.7]}
16... Rac8 {[%clk 0:04:20.9]} 17. Rdc1 {[%clk 0:03:55.6]} 17... h6 {[%clk
0:04:17.5]} 18. Qd4 {[%clk 0:03:54.7]} 18... Qc7 {[%clk 0:04:12]} 19. c3 {[%clk
0:03:49.4]} 19... Nc4 {[%clk 0:04:09.9]} 20. e4 {[%clk 0:03:44.2]} 20... Rfd8
{[%clk 0:04:02.8]} 21. exd5 {[%clk 0:03:41.8]} 21... Rxd5 {[%clk 0:04:02.7]} 22.
Qg4 {[%clk 0:03:35.7]} 22... Nd2 {[%clk 0:03:59.5]} 23. Nxd2 {[%clk 0:03:34.1]}
23... Rxd2 {[%clk 0:03:59.4]} 24. Qf3 {[%clk 0:03:24.6]} 24... Rcd8 {[%clk
0:03:56.1]} 25. Qg3 {[%clk 0:03:17]} 25... Qxg3 {[%clk 0:03:54]} 26. fxg3 {[%clk
0:03:15.5]} 26... Re2 {[%clk 0:03:53.3]} 27. Re1 {[%clk 0:03:13.8]} 27... Rc2
{[%clk 0:03:46.2]} 28. Rec1 {[%clk 0:03:11.2]} 28... Rdd2 {[%clk 0:03:42.8]} 29.
Rxc2 {[%clk 0:03:10]} 29... Rxc2 {[%clk 0:03:42.7]} 30. Kh2 {[%clk 0:03:08.3]}
30... Kf8 {[%clk 0:03:41.1]} 31. g4 {[%clk 0:03:07.5]} 31... Ke7 {[%clk
0:03:39.9]} 32. Kg3 {[%clk 0:03:07.3]} 32... e5 {[%clk 0:03:38.9]} 33. Kf3
{[%clk 0:03:06.2]} 33... Ke6 {[%clk 0:03:37.6]} 34. Kg3 {[%clk 0:03:03.5]} 34...
g6 {[%clk 0:03:36.7]} 35. Kf3 {[%clk 0:03:02.7]} 35... f5 {[%clk 0:03:36.3]} 36.
gxf5+ {[%clk 0:03:00.4]} 36... gxf5 {[%clk 0:03:36.2]} 37. g3 {[%clk 0:02:58.4]}
37... e4+ {[%clk 0:03:35.1]} 38. Ke3 {[%clk 0:02:56]} 38... Ke5 {[%clk
0:03:33.7]} 39. h4 {[%clk 0:02:53.7]} 39... Rg2 {[%clk 0:03:32.1]} 40. Rd1
{[%clk 0:02:49.1]} 40... Rxg3+ {[%clk 0:03:30.6]} 41. Kf2 {[%clk 0:02:48.5]}
41... Rf3+ {[%clk 0:03:27.7]} 42. Ke2 {[%clk 0:02:44.7]} 42... Rh3 {[%clk
0:03:26.2]} 43. Rd7 {[%clk 0:02:43.2]} 43... Rh2+ {[%clk 0:03:23.9]} 44. Kf1
{[%clk 0:02:40.7]} 44... Rxb2 {[%clk 0:03:22.1]} 45. Rh7 {[%clk 0:02:39.5]}
45... f4 {[%clk 0:03:20.7]} 46. Rxh6 {[%clk 0:02:37.7]} 46... e3 {[%clk
0:03:19.9]} 47. Rh5+ {[%clk 0:02:36.6]} 47... Ke4 {[%clk 0:03:18.7]} 48. Rc5
{[%clk 0:02:35.2]} 48... Rb1+ {[%clk 0:03:17.1]} 49. Ke2 {[%clk 0:02:33.8]}
49... f3# {[%clk 0:03:16.4]} 0-1

[Event "Live Chess"]
[Site "Chess.com"]
[Date "2024.06.02"]
[Round "-"]
[White "GerardATHart"]
[Black "GEMdzq"]
[Result "0-1"]
[WhiteElo "1361"]
[BlackElo "2292"]
[TimeControl "300"]
[EndTime "6:44:46 PDT"]
[Termination "GEMdzq won by resignation"]

1. e4 {[%clk 0:04:51.6]} 1... Nf6 {[%clk 0:04:56.3]} 2. e5 {[%clk 0:04:49.4]}
2... Nd5 {[%clk 0:04:55.2]} 3. Nf3 {[%clk 0:04:30.4]} 3... d6 {[%clk 0:04:51.8]}
4. exd6 {[%clk 0:04:28.2]} 4... cxd6 {[%clk 0:04:48.4]} 5. d4 {[%clk 0:04:26]}
5... g6 {[%clk 0:04:45.7]} 6. c4 {[%clk 0:04:21.5]} 6... Nb6 {[%clk 0:04:43.2]}
7. Nc3 {[%clk 0:04:19.5]} 7... Bg7 {[%clk 0:04:41.7]} 8. Be3 {[%clk 0:04:14.9]}
8... O-O {[%clk 0:04:39]} 9. Qd2 {[%clk 0:04:13.2]} 9... Nc6 {[%clk 0:04:33.2]}
10. Bd3 {[%clk 0:04:05.4]} 10... Nb4 {[%clk 0:04:30.7]} 11. Be2 {[%clk
0:03:57.6]} 11... Bf5 {[%clk 0:04:29.6]} 12. O-O-O {[%clk 0:03:52.1]} 12... Na4
{[%clk 0:04:22.4]} 13. a3 {[%clk 0:03:46.2]} 13... Nxc3 {[%clk 0:04:20.8]} 14.
Qxc3 {[%clk 0:03:39]} 14... Na2+ {[%clk 0:04:19.6]} 0-1

[Event "Live Chess"]
[Site "Chess.com"]
[Date "2024.06.02"]
[Round "-"]
[White "Harry_Li"]
[Black "Inglaterra"]
[Result "0-1"]
[WhiteElo "2122"]
[BlackElo "2064"]
[TimeControl "300"]
[EndTime "6:44:47 PDT"]
[Termination "Inglaterra won by resignation"]

1. d4 {[%clk 0:04:57.4]} 1... d5 {[%clk 0:04:58.3]} 2. Bf4 {[%clk 0:04:55.6]}
2... e6 {[%clk 0:04:57.2]} 3. e3 {[%clk 0:04:54.7]} 3... Nf6 {[%clk 0:04:56.6]}
4. c3 {[%clk 0:04:53.6]} 4... Bd6 {[%clk 0:04:56.2]} 5. Bg3 {[%clk 0:04:52.3]}
5... O-O {[%clk 0:04:54.2]} 6. Nd2 {[%clk 0:04:51]} 6... b6 {[%clk 0:04:50.5]}
7. Ngf3 {[%clk 0:04:50.3]} 7... Bb7 {[%clk 0:04:48.2]} 8. Bd3 {[%clk 0:04:49]}
8... Nbd7 {[%clk 0:04:46.2]} 9. O-O {[%clk 0:04:45.2]} 9... Ne4 {[%clk
0:04:43.8]} 10. Bh4 {[%clk 0:04:31.8]} 10... f6 {[%clk 0:04:34.4]} 11. Qc2
{[%clk 0:04:26.4]} 11... g5 {[%clk 0:04:17.9]} 12. Bg3 {[%clk 0:04:17.8]} 12...
f5 {[%clk 0:04:14.1]} 13. Bxd6 {[%clk 0:03:55.8]} 13... cxd6 {[%clk 0:04:14]}
14. Ne1 {[%clk 0:03:50.1]} 14... Rc8 {[%clk 0:04:01.7]} 15. f3 {[%clk
0:03:48.9]} 15... Nxd2 {[%clk 0:03:59]} 16. Qxd2 {[%clk 0:03:48.8]} 16... Qf6
{[%clk 0:03:56.1]} 17. f4 {[%clk 0:03:41.5]} 17... h6 {[%clk 0:03:38.5]} 18. a4
{[%clk 0:03:23.5]} 18... a6 {[%clk 0:03:34.1]} 19. a5 {[%clk 0:03:17.1]} 19...
b5 {[%clk 0:03:32.2]} 20. Nc2 {[%clk 0:03:11]} 20... Kg7 {[%clk 0:03:27]} 21.
Nb4 {[%clk 0:03:09.1]} 21... Qg6 {[%clk 0:03:05.3]} 22. Kh1 {[%clk 0:02:59.3]}
22... Nf6 {[%clk 0:03:03.1]} 23. Rac1 {[%clk 0:02:40.6]} 23... Qh5 {[%clk
0:02:50.2]} 24. Be2 {[%clk 0:02:32.3]} 24... Qh4 {[%clk 0:02:42.7]} 25. g3
{[%clk 0:02:27.9]} 25... Qh3 {[%clk 0:02:39.7]} 26. Bf3 {[%clk 0:02:20.6]} 26...
Ne4 {[%clk 0:02:19.9]} 27. Qe2 {[%clk 0:02:16.8]} 27... Nxg3+ {[%clk 0:02:17.7]}
0-1

[Event "Live Chess"]
[Site "Chess.com"]
[Date "2024.06.02"]
[Round "-"]
[White "Anareza_Firouzja"]
[Black "Step-S"]
[Result "1-0"]
[WhiteElo "1888"]
[BlackElo "1328"]
[TimeControl "300"]
[EndTime "6:45:22 PDT"]
[Termination "Anareza_Firouzja won by checkmate"]

1. e4 {[%clk 0:04:58.5]} 1... c6 {[%clk 0:04:57.6]} 2. d4 {[%clk 0:04:57.2]}
2... d5 {[%clk 0:04:56.8]} 3. f3 {[%clk 0:04:56.4]} 3... dxe4 {[%clk 0:04:55.1]}
4. fxe4 {[%clk 0:04:56.3]} 4... e6 {[%clk 0:04:51.7]} 5. Nf3 {[%clk 0:04:53.9]}
5... Nf6 {[%clk 0:04:46.1]} 6. e5 {[%clk 0:04:52.8]} 6... Nd5 {[%clk 0:04:45]}
7. c3 {[%clk 0:04:52.4]} 7... Nd7 {[%clk 0:04:38.3]} 8. Bd3 {[%clk 0:04:50.8]}
8... N7b6 {[%clk 0:04:36]} 9. O-O {[%clk 0:04:48.4]} 9... h6 {[%clk 0:04:27.9]}
10. Nbd2 {[%clk 0:04:39.4]} 10... Be7 {[%clk 0:04:26.6]} 11. Ne4 {[%clk
0:04:37.9]} 11... Bd7 {[%clk 0:04:20.7]} 12. Bc2 {[%clk 0:04:37.2]} 12... Qc7
{[%clk 0:04:17]} 13. a4 {[%clk 0:04:33.8]} 13... c5 {[%clk 0:04:06.8]} 14. a5
{[%clk 0:04:26.6]} 14... Nc4 {[%clk 0:04:01.3]} 15. Qe2 {[%clk 0:04:12.2]} 15...
Nxa5 {[%clk 0:03:59]} 16. c4 {[%clk 0:04:08.2]} 16... Nb6 {[%clk 0:03:47.9]} 17.
dxc5 {[%clk 0:03:58.9]} 17... Nbxc4 {[%clk 0:03:44.8]} 18. Nd6+ {[%clk
0:03:53.7]} 18... Bxd6 {[%clk 0:03:37.3]} 19. cxd6 {[%clk 0:03:53.5]} 19... Qc5+
{[%clk 0:03:30.2]} 20. Kh1 {[%clk 0:03:52.5]} 20... O-O {[%clk 0:03:22.9]} 21.
Qe4 {[%clk 0:03:44]} 21... g6 {[%clk 0:03:04.9]} 22. Bxh6 {[%clk 0:03:42.4]}
22... Rfc8 {[%clk 0:02:50.8]} 23. Qf4 {[%clk 0:03:35.5]} 23... Ne3 {[%clk
0:02:39.3]} 24. Qf6 {[%clk 0:03:24]} 24... Nf5 {[%clk 0:02:18.9]} 25. Bxf5
{[%clk 0:03:22.5]} 25... gxf5 {[%clk 0:02:15.5]} 26. Qg7# {[%clk 0:03:22.4]} 1-0

[Event "Live Chess"]
[Site "Chess.com"]
[Date "2024.06.02"]
[Round "-"]
[White "Nazar-Makarchuk"]
[Black "r0ad_t0-gm"]
[Result "0-1"]
[WhiteElo "1459"]
[BlackElo "2306"]
[TimeControl "300"]
[EndTime "6:45:56 PDT"]
[Termination "r0ad_t0-gm won by resignation"]

1. e4 {[%clk 0:04:57.4]} 1... c5 {[%clk 0:04:58.7]} 2. c3 {[%clk 0:04:54.3]}
2... Nf6 {[%clk 0:04:57.4]} 3. e5 {[%clk 0:04:51.1]} 3... Nd5 {[%clk 0:04:56.8]}
4. d4 {[%clk 0:04:50.4]} 4... cxd4 {[%clk 0:04:56.7]} 5. cxd4 {[%clk 0:04:49.6]}
5... d6 {[%clk 0:04:55.1]} 6. exd6 {[%clk 0:04:48.3]} 6... Qxd6 {[%clk 0:04:55]}
7. Nf3 {[%clk 0:04:47.6]} 7... Nc6 {[%clk 0:04:54.1]} 8. Nc3 {[%clk 0:04:45.3]}
8... Bg4 {[%clk 0:04:53.1]} 9. Nxd5 {[%clk 0:04:44.1]} 9... Qxd5 {[%clk
0:04:52.3]} 10. Be2 {[%clk 0:04:43.3]} 10... g6 {[%clk 0:04:49.7]} 11. O-O
{[%clk 0:04:42.6]} 11... Bg7 {[%clk 0:04:48.3]} 12. Be3 {[%clk 0:04:41.7]} 12...
O-O {[%clk 0:04:47.3]} 13. Ne5 {[%clk 0:04:40.7]} 13... Bxe2 {[%clk 0:04:45.4]}
14. Qxe2 {[%clk 0:04:39]} 14... Nxe5 {[%clk 0:04:44.2]} 15. dxe5 {[%clk
0:04:38.3]} 15... Qxe5 {[%clk 0:04:44.1]} 16. Rab1 {[%clk 0:04:30]} 16... Rfd8
{[%clk 0:04:42.1]} 17. Rfe1 {[%clk 0:04:28.6]} 17... b6 {[%clk 0:04:38.3]} 18.
Bc1 {[%clk 0:04:21.3]} 18... Qxe2 {[%clk 0:04:38.2]} 0-1

[Event "Live Chess"]
[Site "Chess.com"]
[Date "2024.06.02"]
[Round "-"]
[White "beltmanjb"]
[Black "peteopeteo"]
[Result "1-0"]
[WhiteElo "1691"]
[BlackElo "1551"]
[TimeControl "300"]
[EndTime "6:46:18 PDT"]
[Termination "beltmanjb won by resignation"]

1. d4 {[%clk 0:04:57.9]} 1... d5 {[%clk 0:04:58.7]} 2. c4 {[%clk 0:04:57.2]}
2... c6 {[%clk 0:04:57.1]} 3. Nf3 {[%clk 0:04:56.3]} 3... Bf5 {[%clk 0:04:50.2]}
4. cxd5 {[%clk 0:04:53.5]} 4... cxd5 {[%clk 0:04:45.2]} 5. Qb3 {[%clk
0:04:52.8]} 5... Bc8 {[%clk 0:04:34.3]} 6. Nc3 {[%clk 0:04:49.7]} 6... e6 {[%clk
0:04:33]} 7. Bf4 {[%clk 0:04:46.1]} 7... Nf6 {[%clk 0:04:27.8]} 8. e3 {[%clk
0:04:43.6]} 8... Bd6 {[%clk 0:04:25.3]} 9. Bb5+ {[%clk 0:04:38]} 9... Nc6 {[%clk
0:04:22.5]} 10. Bg5 {[%clk 0:04:25.3]} 10... Be7 {[%clk 0:04:18.8]} 11. O-O
{[%clk 0:04:21.9]} 11... O-O {[%clk 0:04:18]} 12. Rac1 {[%clk 0:04:17.7]} 12...
a6 {[%clk 0:04:16.7]} 13. Bd3 {[%clk 0:04:14.4]} 13... Bd7 {[%clk 0:04:09.5]}
14. Na4 {[%clk 0:04:03.4]} 14... b5 {[%clk 0:04:05.5]} 15. Nc5 {[%clk
0:03:59.7]} 15... Bc8 {[%clk 0:03:52.6]} 16. Nxe6 {[%clk 0:03:43.2]} 16... fxe6
{[%clk 0:03:35.7]} 17. Rxc6 {[%clk 0:03:42.5]} 17... Bd7 {[%clk 0:03:35.5]} 18.
Rc2 {[%clk 0:03:34.3]} 18... Rc8 {[%clk 0:03:10.2]} 19. Rfc1 {[%clk 0:03:32]}
19... Ng4 {[%clk 0:02:52.7]} 20. Rxc8 {[%clk 0:03:14.3]} 20... Bxc8 {[%clk
0:02:46.4]} 21. Bxe7 {[%clk 0:02:51.4]} 21... Qxe7 {[%clk 0:02:41.5]} 22. h3
{[%clk 0:02:49.1]} 22... Nf6 {[%clk 0:02:35.6]} 23. Ne5 {[%clk 0:02:48.2]} 23...
Ne4 {[%clk 0:02:24.3]} 24. f3 {[%clk 0:02:34.8]} 24... Ng5 {[%clk 0:02:11.1]}
25. Qc2 {[%clk 0:02:24.8]} 25... Nxf3+ {[%clk 0:02:01.1]} 26. Nxf3 {[%clk
0:02:16.9]} 26... Rxf3 {[%clk 0:01:57.2]} 27. gxf3 {[%clk 0:02:08.2]} 27... Qg5+
{[%clk 0:01:55.5]} 28. Kf2 {[%clk 0:01:40]} 28... Qh4+ {[%clk 0:01:53.1]} 29.
Kg2 {[%clk 0:01:38.1]} 29... Qg5+ {[%clk 0:01:51.9]} 30. Kh2 {[%clk 0:01:32]}
30... Bd7 {[%clk 0:01:44.3]} 31. Rg1 {[%clk 0:01:27.5]} 31... Qxe3 {[%clk
0:01:36.1]} 32. Bxh7+ {[%clk 0:01:24.1]} 32... Kh8 {[%clk 0:01:28.8]} 33. Bg6
{[%clk 0:01:10.5]} 33... Qxd4 {[%clk 0:01:12.4]} 34. Qg2 {[%clk 0:00:57.1]}
34... Qf4+ {[%clk 0:01:06]} 35. Qg3 {[%clk 0:00:50.7]} 35... Qd2+ {[%clk
0:01:04.2]} 36. Rg2 {[%clk 0:00:49.7]} 36... Qh6 {[%clk 0:01:00.1]} 37. Qb8+
{[%clk 0:00:45.2]} 1-0

[Event "Live Chess"]
[Site "Chess.com"]
[Date "2024.06.02"]
[Round "-"]
[White "yarek"]
[Black "Eva3337"]
[Result "1-0"]
[WhiteElo "1747"]
[BlackElo "1177"]
[TimeControl "300"]
[EndTime "6:46:29 PDT"]
[Termination "yarek won by checkmate"]

1. e4 {[%clk 0:04:56.6]} 1... Nc6 {[%clk 0:04:58.6]} 2. d4 {[%clk 0:04:55.2]}
2... e6 {[%clk 0:04:56.7]} 3. c3 {[%clk 0:04:49.6]} 3... d5 {[%clk 0:04:17.9]}
4. e5 {[%clk 0:04:47]} 4... f6 {[%clk 0:04:09.3]} 5. f4 {[%clk 0:04:27.1]} 5...
Bd7 {[%clk 0:04:04.2]} 6. Nf3 {[%clk 0:04:22.2]} 6... Qe7 {[%clk 0:04:02.4]} 7.
Bd3 {[%clk 0:04:19.2]} 7... O-O-O {[%clk 0:03:59.5]} 8. O-O {[%clk 0:04:18.7]}
8... f5 {[%clk 0:03:45.5]} 9. b4 {[%clk 0:04:06.1]} 9... a6 {[%clk 0:03:41.5]}
10. b5 {[%clk 0:04:03.7]} 10... axb5 {[%clk 0:03:38.4]} 11. Bxb5 {[%clk
0:04:01.9]} 11... Na7 {[%clk 0:03:37.6]} 12. Bd3 {[%clk 0:03:55.3]} 12... Bb5
{[%clk 0:03:34.4]} 13. a4 {[%clk 0:03:50.3]} 13... Bxd3 {[%clk 0:03:32.2]} 14.
Qxd3 {[%clk 0:03:49.8]} 14... c5 {[%clk 0:03:24.7]} 15. Ba3 {[%clk 0:03:47.5]}
15... Qc7 {[%clk 0:03:20.5]} 16. Nbd2 {[%clk 0:03:38]} 16... c4 {[%clk
0:03:13.1]} 17. Qc2 {[%clk 0:03:32.8]} 17... Bxa3 {[%clk 0:03:10.3]} 18. Rxa3
{[%clk 0:03:30.4]} 18... Nh6 {[%clk 0:02:59.2]} 19. h3 {[%clk 0:03:27.5]} 19...
Rhg8 {[%clk 0:02:55.1]} 20. Ng5 {[%clk 0:03:24.7]} 20... Qe7 {[%clk 0:02:48.8]}
21. Qb2 {[%clk 0:03:17.2]} 21... Nf7 {[%clk 0:02:41]} 22. Ndf3 {[%clk
0:03:09.8]} 22... Nxg5 {[%clk 0:02:27.7]} 23. Nxg5 {[%clk 0:03:07.4]} 23... h6
{[%clk 0:02:27.6]} 24. Nf3 {[%clk 0:03:04.7]} 24... g5 {[%clk 0:02:24.9]} 25.
fxg5 {[%clk 0:03:01.4]} 25... hxg5 {[%clk 0:02:18]} 26. Rb1 {[%clk 0:03:00.5]}
26... Rd7 {[%clk 0:02:12.3]} 27. Qb6 {[%clk 0:02:55.2]} 27... Nc6 {[%clk
0:02:06.9]} 28. a5 {[%clk 0:02:53.1]} 28... g4 {[%clk 0:02:03.9]} 29. hxg4
{[%clk 0:02:17.9]} 29... Rxg4 {[%clk 0:01:54.1]} 30. a6 {[%clk 0:02:14.1]} 30...
Qxa3 {[%clk 0:01:07.9]} 31. axb7+ {[%clk 0:02:06.3]} 31... Kb8 {[%clk
0:00:44.5]} 32. Qxc6 {[%clk 0:02:02.2]} 32... Qa2 {[%clk 0:00:20.2]} 33. Qc8+
{[%clk 0:01:56.7]} 33... Ka7 {[%clk 0:00:14.8]} 34. b8=Q# {[%clk 0:01:56.2]} 1-0